bitfinex/quotes_BTCUSD_20250127
["timestamp","ask_amount","ask_price","bid_price","bid_amount"]
[1737992799090,0.61035005,101500.0,101490.0,0.0001414]
[1737992799295,0.61035005,101500.0,101490.0,0.0041414]
[1737992799505,0.61435005,101500.0,101490.0,0.0041414]
[1737992799688,0.61435005,101500.0,101490.0,0.0001414]
[1737992799894,0.61435005,101500.0,101490.0,0.00444615]
[1737992800097,0.61935005,101500.0,101490.0,0.00544615]
[1737992800319,0.67243331,101500.0,101490.0,1.5e-07]
[1737992800528,0.385197,101490.0,101480.0,0.08410764]
[1737992800764,0.48254429,101490.0,101480.0,0.08410764]
[1737992800972,0.1673591,101460.0,101450.0,0.00052178]
[1737992801328,0.1673591,101460.0,101450.0,0.09786907]
[1737992801557,0.147841,101460.0,101450.0,0.09786907]
[1737992801921,0.1673591,101460.0,101450.0,0.09786907]
[1737992802322,0.1673591,101460.0,101450.0,0.00101582]
[1737992802749,0.16834342,101460.0,101450.0,0.00101582]
[1737992803208,0.16834342,101460.0,101450.0,0.09836311]
[1737992803363,0.1673591,101460.0,101450.0,0.09836311]
[1737992803617,0.1673591,101460.0,101450.0,0.10236311]
[1737992803917,0.1673591,101460.0,101450.0,1.60236311]
[1737992804122,0.147841,101460.0,101450.0,1.60236311]
[1737992804328,0.1673591,101460.0,101450.0,1.60436311]
[1737992804711,0.147841,101460.0,101450.0,0.10436311]
[1737992805538,0.1673591,101460.0,101450.0,0.10436311]
[1737992806324,0.147841,101460.0,101450.0,0.25221911]
[1737992806523,0.73919,101470.0,101450.0,0.44734811]
[1737992806724,0.344955,101470.0,101460.0,0.09734729]
[1737992806960,0.3644731,101470.0,101460.0,0.09734729]
[1737992807315,0.344955,101470.0,101460.0,0.09734729]
[1737992807715,0.344955,101470.0,101460.0,0.24518829]
[1737992807919,0.0195181,101460.0,101450.0,0.00401582]
[1737992808119,0.1673591,101460.0,101450.0,0.10036311]
[1737992808640,0.1673591,101460.0,101450.0,0.09836311]
[1737992808830,0.16834342,101460.0,101450.0,0.09836311]
[1737992809232,0.1673591,101460.0,101450.0,0.09836311]
[1737992809599,0.51404508,101460.0,101450.0,0.00101582]
[1737992809765,0.78705534,101460.0,101450.0,0.00101582]
[1737992809974,0.68970805,101460.0,101450.0,0.00101582]
[1737992811404,0.69970805,101460.0,101450.0,0.00101582]
[1737992811610,0.69270805,101460.0,101450.0,0.00101582]
[1737992812440,0.69270805,101460.0,101450.0,0.00201582]
[1737992812857,0.59536076,101460.0,101450.0,0.00101582]
[1737992813062,0.54543638,101460.0,101450.0,0.00101582]
[1737992813267,0.55043638,101460.0,101450.0,0.00201582]
[1737992813502,0.53091828,101460.0,101450.0,0.00201582]
[1737992813709,0.38091828,101460.0,101450.0,0.00201582]
[1737992814123,0.37791828,101460.0,101450.0,0.00201582]
[1737992814537,0.37991828,101460.0,101450.0,0.00201582]
[1737992815369,0.37491828,101460.0,101450.0,0.00101582]
[1737992815785,0.37991828,101460.0,101450.0,0.00508026]
[1737992815971,0.154841,101460.0,101450.0,0.24621911]
[1737992816205,0.1743591,101460.0,101450.0,0.10242755]
[1737992817058,0.1693591,101460.0,101450.0,0.10242755]
[1737992817236,0.1673591,101460.0,101450.0,0.25028355]
[1737992817397,0.1673591,101460.0,101450.0,0.10242755]
[1737992817807,0.1673591,101460.0,101450.0,0.00508026]
[1737992818015,0.16834342,101460.0,101450.0,0.00508026]
[1737992818273,0.16634342,101460.0,101450.0,0.00508026]
[1737992818467,0.36504508,101460.0,101450.0,0.00508026]
[1737992818639,0.36406076,101460.0,101450.0,0.00508026]
[1737992819199,0.36306076,101460.0,101450.0,0.00508026]
[1737992819752,0.51306076,101460.0,101450.0,0.00608026]
[1737992819908,0.51306076,101460.0,101450.0,0.00508026]
[1737992820314,0.51806076,101460.0,101450.0,0.00508026]
[1737992820518,0.42507343,101460.0,101450.0,0.00508026]
[1737992820726,0.50977343,101460.0,101450.0,0.00508026]
[1737992820926,0.60712072,101460.0,101450.0,0.00508026]
[1737992821165,0.89720044,101460.0,101450.0,2.6e-07]
[1737992821319,0.89720044,101460.0,101450.0,8.6e-07]
[1737992821518,0.297885,101430.0,101420.0,0.0001416]
[1737992821722,0.297885,101430.0,101420.0,0.00028896]
[1737992821723,0.42011743,101430.0,101420.0,0.00028896]
[1737992822810,0.4118601,101440.0,101420.0,0.09763625]
[1737992823013,0.542162,101450.0,101430.0,0.24621813]
[1737992823216,0.147866,101450.0,101440.0,0.14787]
[1737992823433,0.3625351,101450.0,101440.0,0.09734729]
[1737992823858,0.345017,101450.0,101440.0,0.09734729]
[1737992824724,0.3625351,101450.0,101440.0,0.09734729]
[1737992825351,0.345017,101450.0,101440.0,0.24521729]
[1737992825555,0.3625351,101450.0,101440.0,0.24521729]
[1737992825771,0.34498,101460.0,101440.0,0.63951229]
[1737992826026,0.344979,101460.0,101450.0,0.147856]
[1737992826233,0.353979,101460.0,101450.0,0.148856]
[1737992826356,0.009,101460.0,101450.0,0.24718895]
[1737992826583,0.1653591,101460.0,101450.0,0.09734729]
[1737992826784,0.1653591,101460.0,101450.0,0.24520329]
[1737992827750,0.1653591,101460.0,101450.0,0.09734729]
[1737992827954,0.1663591,101460.0,101450.0,0.09734729]
[1737992828347,0.14787,101440.0,101430.0,0.34506]
[1737992828523,0.3625571,101440.0,101430.0,0.09734729]
[1737992828932,0.394296,101450.0,101430.0,0.10066105]
[1737992829139,0.345004,101450.0,101440.0,0.24521729]
[1737992829339,0.543121,101460.0,101440.0,0.09734729]
[1737992829537,0.543121,101460.0,101440.0,0.57776379]
[1737992829538,0.345978,101460.0,101440.0,0.57776379]
[1737992829767,0.344978,101460.0,101440.0,0.57776379]
[1737992829944,0.5596221,101460.0,101440.0,0.24853279]
[1737992830145,0.147856,101450.0,101440.0,0.24853279]
[1737992830564,0.77496386,101460.0,101440.0,0.44568379]
[1737992830809,0.344978,101460.0,101450.0,0.147856]
[1737992831045,0.147834,101470.0,101460.0,0.147841]
[1737992831248,0.42258294,101480.0,101470.0,0.147826]
[1737992831249,0.02765828,101480.0,101470.0,0.147826]
[1737992831426,0.00029715,101480.0,101470.0,0.24615864]
[1737992831641,0.00029715,101480.0,101470.0,0.2988507]
[1737992831851,0.14810915,101480.0,101470.0,1.63131023]
[1737992832058,0.01781525,101480.0,101470.0,0.27913623]
[1737992832262,0.01781525,101480.0,101470.0,0.24845882]
[1737992832263,0.00079088,101480.0,101470.0,0.24845882]
[1737992832910,0.00079088,101480.0,101470.0,0.27912573]
[1737992833115,0.16612098,101480.0,101470.0,0.13129973]
[1737992833380,0.16612098,101480.0,101470.0,0.10163282]
[1737992833663,0.38146274,101480.0,101470.0,0.00428553]
[1737992833874,0.38146274,101480.0,101470.0,0.00328553]
[1737992834081,0.16612098,101480.0,101470.0,0.00528553]
[1737992834291,0.00079088,101480.0,101470.0,0.25144425]
[1737992834496,0.00079088,101480.0,101470.0,0.25545882]
[1737992834651,0.00079088,101480.0,101470.0,0.30911632]
[1737992834859,0.00079088,101480.0,101470.0,0.30411632]
[1737992835257,0.15060288,101480.0,101470.0,0.28111632]
[1737992835448,0.14860288,101480.0,101470.0,0.28111632]
[1737992835703,0.00079088,101480.0,101470.0,0.27911632]
[1737992835910,0.00079088,101480.0,101470.0,0.28311632]
[1737992836371,0.00079088,101480.0,101470.0,0.25245882]
[1737992836587,0.14908727,101480.0,101470.0,0.25245882]
[1737992837270,0.00027527,101480.0,101470.0,0.25245882]
[1737992837444,0.00027527,101480.0,101470.0,0.25445882]
[1737992837813,0.00027527,101480.0,101470.0,0.25045882]
[1737992838220,0.00018152,101480.0,101470.0,0.25145882]
[1737992838822,0.00018152,101480.0,101470.0,0.33914382]
[1737992839642,0.00018152,101480.0,101470.0,0.36214382]
[1737992839842,0.00018152,101480.0,101470.0,0.47485499]
[1737992840528,0.00018152,101480.0,101470.0,0.51965499]
[1737992840855,0.00018152,101480.0,101470.0,0.52065499]
[1737992841053,0.00018152,101480.0,101470.0,2.01965499]
[1737992841299,0.14799352,101480.0,101470.0,0.33714382]
[1737992841503,0.14799352,101480.0,101470.0,0.34114382]
[1737992841702,0.14799352,101480.0,101470.0,0.19331782]
[1737992841905,0.16551162,101480.0,101470.0,0.19331782]
[1737992842309,0.16551162,101480.0,101470.0,0.19031782]
[1737992842758,0.14799352,101480.0,101470.0,0.09397053]
[1737992842959,0.51333528,101480.0,101470.0,0.09297053]
[1737992843163,0.61068257,101480.0,101470.0,0.09297053]
[1737992843598,0.7166878,101480.0,101470.0,0.09297053]
[1737992843797,0.7836878,101480.0,101470.0,0.09297053]
[1737992844017,0.76768257,101480.0,101470.0,0.09297053]
[1737992844520,0.76768257,101480.0,101470.0,0.09097053]
[1737992844718,0.79879257,101480.0,101470.0,0.09097053]
[1737992844971,0.79879257,101480.0,101470.0,0.00328553]
[1737992845180,0.79679257,101480.0,101470.0,0.00328553]
[1737992845386,0.297841,101460.0,101450.0,0.0878265]
[1737992845564,0.42006688,101460.0,101450.0,0.0878265]
[1737992845765,0.42006688,101460.0,101450.0,0.00346205]
[1737992846594,0.51521297,101460.0,101450.0,0.00346205]
[1737992847814,0.68986026,101460.0,101450.0,0.00346205]
[1737992848022,0.297885,101430.0,101420.0,0.0001416]
[1737992848163,0.51325697,101430.0,101420.0,0.0001416]
[1737992848724,0.297885,101430.0,101420.0,0.0001416]
[1737992849016,0.297885,101430.0,101420.0,0.08834925]
[1737992849367,0.297885,101430.0,101420.0,0.08866145]
[1737992849774,0.147885,101430.0,101420.0,0.18600874]
[1737992849962,0.147885,101430.0,101420.0,0.33490774]
[1737992850166,0.56944045,101440.0,101420.0,0.53310674]
[1737992850366,0.5422,101440.0,101420.0,0.53310674]
[1737992850599,0.5422,101440.0,101420.0,0.73029674]
[1737992850806,0.75967397,101450.0,101430.0,0.24523229]
[1737992851009,0.75967397,101450.0,101440.0,0.14787]
[1737992851010,0.3625361,101450.0,101440.0,0.14787]
[1737992851212,0.345018,101450.0,101440.0,0.24521729]
[1737992851449,0.147856,101450.0,101440.0,0.09734729]
[1737992851806,0.1653741,101450.0,101440.0,1.74521729]
[1737992851990,0.11907968,101450.0,101440.0,1.74521729]
[1737992852228,0.13659778,101450.0,101440.0,1.74521729]
[1737992852464,0.0175181,101460.0,101440.0,0.24521729]
[1737992852593,0.21490725,101480.0,101450.0,0.09734729]
[1737992852784,0.34520915,101480.0,101460.0,0.344942]
[1737992852988,0.1653441,101470.0,101460.0,0.0983329]
[1737992853200,0.2146511,101460.0,101440.0,0.392826]
[1737992853402,0.2146511,101460.0,101440.0,0.09734729]
[1737992853403,0.1653741,101450.0,101440.0,0.09734729]
[1737992853601,0.147885,101430.0,101420.0,0.0021416]
[1737992853845,0.1654031,101430.0,101420.0,0.09948889]
[1737992854056,0.147885,101430.0,101420.0,0.0004538]
[1737992854810,0.147885,101430.0,101420.0,0.09780109]
[1737992855020,0.1654031,101430.0,101420.0,0.09780109]
[1737992855252,0.147885,101430.0,101420.0,0.0004538]
[1737992855455,0.147885,101430.0,101420.0,0.24837188]
[1737992855656,0.1654031,101430.0,101420.0,0.24837188]
[1737992855843,0.0175181,101430.0,101420.0,0.24837188]
[1737992856020,0.147885,101430.0,101420.0,0.24837188]
[1737992856225,0.1654031,101430.0,101420.0,0.10047288]
[1737992856506,0.14886932,101430.0,101420.0,0.00312559]
[1737992857032,0.14886932,101430.0,101420.0,0.00412559]
[1737992858143,0.61158858,101430.0,101420.0,0.00412559]
[1737992858356,0.61060426,101430.0,101420.0,0.00412559]
[1737992858560,0.61060426,101430.0,101420.0,0.00612559]
[1737992859618,0.62060426,101430.0,101420.0,0.00512559]
[1737992859828,0.51325697,101430.0,101420.0,0.00512559]
[1737992860034,0.51825697,101430.0,101420.0,0.00512559]
[1737992860244,0.62060426,101430.0,101420.0,0.00512559]
[1737992860423,0.51325697,101430.0,101420.0,0.00512559]
[1737992860632,0.51825697,101430.0,101420.0,0.00312559]
[1737992860985,0.62060426,101430.0,101420.0,0.00312559]
[1737992861388,0.62660426,101430.0,101420.0,0.00312559]
[1737992861609,0.61660426,101430.0,101420.0,0.00312559]
[1737992861816,0.61560426,101430.0,101420.0,0.00312559]
[1737992862700,0.61760426,101430.0,101420.0,0.00312559]
[1737992863175,0.62258555,101430.0,101420.0,0.00312559]
[1737992863689,0.52523826,101430.0,101420.0,0.00312559]
[1737992863939,0.62958555,101430.0,101420.0,0.00412559]
[1737992864186,0.53223826,101430.0,101420.0,0.00312559]
[1737992864451,0.52523826,101430.0,101420.0,0.00312559]
[1737992864705,0.154885,101430.0,101420.0,0.00312559]
[1737992865208,0.15586932,101430.0,101420.0,0.00312559]
[1737992865457,0.37124129,101430.0,101420.0,0.00312559]
[1737992865713,0.70310426,101430.0,101420.0,0.00312559]
[1737992866234,0.51825697,101430.0,101420.0,0.00312559]
[1737992866478,0.38077507,101430.0,101420.0,0.00312559]
[1737992866717,0.27216041,101430.0,101420.0,0.00312559]
[1737992867475,0.27016041,101430.0,101420.0,0.00312559]
[1737992867729,0.27116041,101430.0,101420.0,0.00312559]
[1737992867913,0.27616041,101430.0,101420.0,0.00312559]
[1737992868971,0.42516041,101430.0,101420.0,0.00312559]
[1737992869608,0.42016041,101430.0,101420.0,0.00312559]
[1737992870032,0.42216041,101430.0,101420.0,0.00312559]
[1737992870248,0.42016041,101430.0,101420.0,0.00312559]
[1737992870491,0.42116041,101430.0,101420.0,0.00312559]
[1737992870693,0.42616041,101430.0,101420.0,0.00312559]
[1737992872517,0.5235077,101430.0,101420.0,0.00312559]
[1737992872888,0.5325077,101430.0,101420.0,0.00312559]
[1737992873515,0.5325077,101430.0,101420.0,5.9e-07]
[1737992873718,0.5325077,101430.0,101410.0,0.0001415]
[1737992873719,0.320899,101420.0,101410.0,0.0001415]
[1737992873921,0.320899,101420.0,101410.0,5e-07]
[1737992873922,0.5605217,101420.0,101410.0,5e-07]
[1737992874129,0.5375217,101420.0,101410.0,5e-07]
[1737992874344,0.42017441,101420.0,101410.0,5e-07]
[1737992875171,0.5275217,101420.0,101410.0,5e-07]
[1737992876431,0.5295217,101420.0,101410.0,5e-07]
[1737992876605,0.5375217,101420.0,101410.0,0.0010005]
[1737992877054,0.43017441,101420.0,101410.0,0.0010005]
[1737992877737,0.43989209,101420.0,101410.0,0.0010005]
[1737992878277,0.45741019,101420.0,101410.0,0.0010005]
[1737992878481,0.16761668,101420.0,101410.0,0.0010005]
[1737992878686,0.1754171,101420.0,101410.0,0.0010005]
[1737992878896,0.157899,101420.0,101410.0,0.0010005]
[1737992879516,0.28017441,101420.0,101410.0,0.0010005]
[1737992879751,0.157899,101420.0,101410.0,0.1489145]
[1737992879961,0.157899,101420.0,101410.0,0.24626179]
[1737992880169,0.17532399,101420.0,101410.0,0.09834779]
[1737992880598,0.00990689,101420.0,101410.0,0.24626179]
[1737992880812,0.02742499,101420.0,101410.0,0.24626179]
[1737992881024,0.1734171,101420.0,101410.0,0.24626179]
[1737992881238,0.29569251,101420.0,101410.0,0.0010005]
[1737992881442,0.28769251,101420.0,101410.0,5e-07]
[1737992881776,0.0175181,101420.0,101410.0,0.24526179]
[1737992882011,0.34518022,101430.0,101410.0,0.44246879]
[1737992882192,0.34518022,101430.0,101420.0,0.09734729]
[1737992882398,0.34518022,101430.0,101420.0,0.24524629]
[1737992882694,0.34518022,101430.0,101420.0,0.09734729]
[1737992882902,0.46745563,101430.0,101420.0,0.09734729]
[1737992883281,0.1654171,101420.0,101410.0,0.1479145]
[1737992883536,0.1654171,101420.0,101410.0,0.24526179]
[1737992883952,0.68216773,101430.0,101410.0,0.63968679]
[1737992884172,0.00029736,101420.0,101410.0,0.24526179]
[1737992884381,0.00029736,101420.0,101410.0,0.26826179]
[1737992884989,0.01781546,101420.0,101410.0,0.26826179]
[1737992885198,0.00029736,101420.0,101410.0,0.39226179]
[1737992885414,0.16571446,101420.0,101410.0,0.14354779]
[1737992885625,0.28798987,101420.0,101410.0,0.09734779]
[1737992885826,0.28798987,101420.0,101410.0,5e-07]
[1737992886033,0.27047177,101420.0,101410.0,5e-07]
[1737992886269,0.14919636,101420.0,101410.0,0.09734779]
[1737992886508,0.14919636,101420.0,101410.0,0.24526179]
[1737992886509,0.00129736,101420.0,101410.0,0.24526179]
[1737992886705,0.16671446,101420.0,101410.0,0.24526179]
[1737992887468,0.16671446,101420.0,101410.0,0.09734779]
[1737992887714,0.16769878,101420.0,101410.0,5e-07]
[1737992887969,0.16671446,101420.0,101410.0,0.1479145]
[1737992888214,0.16671446,101420.0,101410.0,5e-07]
[1737992888459,0.16671446,101420.0,101410.0,0.1479145]
[1737992888692,0.16671446,101420.0,101410.0,5e-07]
[1737992890102,0.42245609,101420.0,101410.0,5e-07]
[1737992890332,0.66916635,101420.0,101410.0,5e-07]
[1737992890562,0.63166482,101410.0,101400.0,0.0001418]
[1737992890770,0.6067367,101410.0,101400.0,0.0001418]
[1737992892473,0.72901211,101410.0,101400.0,0.0001418]
[1737992892680,0.6067367,101410.0,101400.0,0.0001418]
[1737992892916,0.6117367,101410.0,101400.0,0.00272847]
[1737992893148,0.6017367,101410.0,101400.0,0.00272847]
[1737992893732,0.6027367,101410.0,101400.0,0.00272847]
[1737992895058,0.6127367,101410.0,101400.0,0.00272847]
[1737992897105,0.27618941,101410.0,101400.0,0.00272847]
[1737992897545,0.42618941,101410.0,101400.0,0.00272847]
[1737992900190,0.42518941,101410.0,101400.0,0.00272847]
[1737992900557,0.42018941,101410.0,101400.0,0.00272847]
[1737992900754,0.5175367,101410.0,101400.0,0.00272847]
[1737992901213,0.0175181,101400.0,101390.0,0.07285182]
[1737992901418,0.54381043,101400.0,101390.0,8.2e-07]
[1737992901618,0.73892611,101400.0,101390.0,8.2e-07]
[1737992901860,0.72892611,101400.0,101390.0,8.2e-07]
[1737992902512,0.75678302,101400.0,101390.0,8.2e-07]
[1737992902728,0.327943,101390.0,101380.0,0.0001017]
[1737992902941,0.5475657,101390.0,101380.0,0.0001017]
[1737992903072,0.59842261,101390.0,101380.0,0.0001017]
[1737992903277,0.71069802,101390.0,101380.0,7e-07]
[1737992903492,0.413972,101370.0,101360.0,0.0001415]
[1737992903718,0.78372702,101370.0,101360.0,0.0001415]
[1737992904122,0.78372702,101370.0,101360.0,0.00028886]
[1737992904672,0.63845161,101370.0,101360.0,0.00028886]
[1737992905025,0.6075947,101370.0,101360.0,0.00128886]
[1737992905223,0.8502174,101370.0,101360.0,0.00128886]
[1737992905423,0.75772702,101370.0,101360.0,0.00128886]
[1737992905621,0.63545161,101370.0,101360.0,0.00128886]
[1737992905914,0.6175947,101370.0,101360.0,0.00128886]
[1737992906128,0.42724741,101370.0,101360.0,0.00128886]
[1737992906342,0.43701302,101370.0,101360.0,0.00128886]
[1737992906554,0.65863572,101370.0,101360.0,0.00128886]
[1737992906787,0.66863572,101370.0,101360.0,0.00128886]
[1737992907601,0.54636031,101370.0,101360.0,0.00128886]
[1737992908020,0.56604319,101370.0,101360.0,0.00128886]
[1737992908235,0.6883186,101370.0,101360.0,0.00128886]
[1737992908446,0.71403342,101370.0,101360.0,0.00128886]
[1737992908671,0.6883186,101370.0,101360.0,0.00128886]
[1737992908927,0.81138071,101370.0,101360.0,0.00128886]
[1737992909159,0.55604319,101370.0,101360.0,0.00128886]
[1737992910450,0.6783186,101370.0,101360.0,0.00128886]
[1737992910658,0.6883186,101370.0,101360.0,0.00128886]
[1737992910872,0.7113186,101370.0,101360.0,0.00128886]
[1737992911081,0.89736589,101370.0,101360.0,0.00128886]
[1737992911705,0.8000186,101370.0,101360.0,0.00128886]
[1737992912778,0.7930186,101370.0,101360.0,0.00028886]
[1737992913163,0.8020186,101370.0,101360.0,0.00128886]
[1737992913358,0.8000186,101370.0,101360.0,0.00128886]
[1737992913670,0.8070186,101370.0,101360.0,0.00228886]
[1737992913873,0.8170186,101370.0,101360.0,0.00228886]
[1737992914110,0.67174319,101370.0,101360.0,0.00228886]
[1737992914554,0.66174319,101370.0,101360.0,0.00228886]
[1737992914754,0.56304319,101370.0,101360.0,0.00228886]
[1737992915202,0.55327758,101370.0,101360.0,0.00228886]
[1737992915454,0.69555299,101370.0,101360.0,0.00228886]
[1737992915617,0.70555299,101370.0,101360.0,0.00228886]
[1737992916096,0.57327758,101370.0,101360.0,0.00228886]
[1737992916300,0.58327758,101370.0,101360.0,0.00228886]
[1737992916675,0.82590028,101370.0,101360.0,0.00228886]
[1737992917752,0.72855299,101370.0,101360.0,0.00228886]
[1737992918401,0.55327758,101370.0,101360.0,0.00228886]
[1737992918614,0.57327758,101370.0,101360.0,0.00228886]
[1737992918783,0.55327758,101370.0,101360.0,0.00228886]
[1737992918995,0.57327758,101370.0,101360.0,0.00228886]
[1737992919399,0.55327758,101370.0,101360.0,0.00228886]
[1737992920380,0.67062487,101370.0,101360.0,0.00228886]
[1737992920608,0.57327758,101370.0,101360.0,0.00228886]
[1737992921579,0.60627758,101370.0,101360.0,0.00228886]
[1737992921776,0.60657494,101370.0,101360.0,0.00228886]
[1737992922031,0.71885035,101370.0,101360.0,0.00228886]
[1737992922241,0.78125035,101370.0,101360.0,0.00228886]
[1737992922440,0.78125035,101370.0,101360.0,8.6e-07]
[1737992922684,0.65897494,101370.0,101360.0,8.6e-07]
[1737992922858,0.66897494,101370.0,101360.0,8.6e-07]
[1737992923061,0.65897494,101370.0,101360.0,8.6e-07]
[1737992923280,0.55357494,101370.0,101360.0,8.6e-07]
[1737992925136,0.16426936,101370.0,101360.0,8.6e-07]
[1737992925495,0.16525368,101370.0,101360.0,8.6e-07]
[1737992925708,0.31525368,101370.0,101360.0,8.6e-07]
[1737992925935,0.31426936,101370.0,101360.0,8.6e-07]
[1737992926168,0.0175181,101360.0,101350.0,0.0468]
[1737992926381,0.147987,101360.0,101350.0,0.04729422]
[1737992927427,0.151987,101360.0,101350.0,0.04729422]
[1737992927728,0.151987,101360.0,101350.0,0.19529522]
[1737992927729,0.152987,101360.0,101350.0,0.19529522]
[1737992928126,0.005,101360.0,101350.0,0.29264251]
[1737992928333,0.005,101360.0,101350.0,0.36944251]
[1737992928780,0.1705051,101360.0,101350.0,0.12409422]
[1737992929560,0.1695051,101360.0,101350.0,0.12409422]
[1737992929760,0.1655051,101360.0,101350.0,0.12409422]
[1737992929967,0.16648942,101360.0,101350.0,0.12409422]
[1737992930178,0.43876483,101360.0,101350.0,0.04729422]
[1737992930403,0.42026241,101360.0,101350.0,0.00049422]
[1737992930627,0.297987,101360.0,101350.0,0.00049422]
[1737992931267,0.42026241,101360.0,101350.0,0.00049422]
[1737992933224,0.42026241,101360.0,101350.0,0.00063592]
[1737992933421,0.301987,101360.0,101350.0,0.00063592]
[1737992934862,0.302987,101360.0,101350.0,0.00063592]
[1737992935527,0.42526241,101360.0,101350.0,0.00063592]
[1737992938735,0.302987,101360.0,101350.0,0.00063592]
[1737992938986,0.1705051,101360.0,101350.0,0.22248321]
[1737992939639,0.0225181,101360.0,101350.0,0.37048421]
[1737992939822,0.1705051,101360.0,101350.0,0.37048421]
[1737992940027,0.0225181,101360.0,101350.0,0.37048421]
[1737992940264,0.1705051,101360.0,101350.0,0.22248321]
[1737992940478,0.005,101360.0,101350.0,0.37048421]
[1737992940696,0.152987,101360.0,101350.0,0.37048421]
[1737992940915,0.005,101360.0,101350.0,0.37048421]
[1737992941133,0.0225181,101360.0,101350.0,0.37048421]
[1737992941339,0.1705051,101360.0,101350.0,0.37048421]
[1737992941560,0.005,101360.0,101350.0,0.37048421]
[1737992941774,0.005,101360.0,101350.0,0.51575962]
[1737992941985,0.005,101360.0,101350.0,0.37048421]
[1737992942449,0.1705051,101360.0,101350.0,0.22248321]
[1737992942658,0.15397132,101360.0,101350.0,0.12513592]
[1737992942863,0.14997132,101360.0,101350.0,0.00063592]
[1737992943953,0.148987,101360.0,101350.0,0.14863692]
[1737992944192,0.0185181,101360.0,101350.0,0.24898421]
[1737992944399,0.19760736,101370.0,101350.0,0.24898421]
[1737992944400,0.34558236,101370.0,101360.0,0.147987]
[1737992944620,0.36309146,101370.0,101360.0,0.147987]
[1737992944831,0.36309146,101370.0,101350.0,0.64063121]
[1737992945043,0.36309146,101370.0,101350.0,0.44330521]
[1737992945250,0.147987,101360.0,101350.0,0.00263592]
[1737992945457,0.16648942,101360.0,101350.0,0.00263592]
[1737992945667,0.16648942,101360.0,101350.0,0.00063592]
[1737992945883,0.1655051,101360.0,101350.0,0.00063592]
[1737992946097,0.16648942,101360.0,101350.0,0.00063592]
[1737992946583,0.1655051,101360.0,101350.0,0.00063592]
[1737992947282,0.16648942,101360.0,101350.0,0.00063592]
[1737992948110,0.29897132,101360.0,101350.0,0.00063592]
[1737992948328,0.297987,101360.0,101350.0,0.00063592]
[1737992949368,0.42026241,101360.0,101350.0,0.00063592]
[1737992951603,0.15,101350.0,101340.0,0.08378114]
[1737992951809,0.29898532,101350.0,101340.0,0.08392929]
[1737992952013,0.42027641,101350.0,101340.0,0.08392929]
[1737992952450,0.42027641,101350.0,101340.0,0.00014815]
[1737992953017,0.5176237,101350.0,101340.0,0.00014815]
[1737992953634,0.298001,101350.0,101340.0,0.00014815]
[1737992955122,0.5611721,101360.0,101340.0,0.22559544]
[1737992955375,0.1655191,101350.0,101340.0,0.22559544]
[1737992955812,0.1655191,101350.0,101340.0,0.14579544]
[1737992956412,0.1655191,101350.0,101340.0,0.14879544]
[1737992957188,0.542659,101360.0,101340.0,0.29881144]
[1737992957384,0.542656,101360.0,101340.0,0.49616644]
[1737992957599,0.345328,101360.0,101340.0,0.49616644]
[1737992957818,0.34557136,101370.0,101350.0,0.148001]
[1737992958042,0.14827336,101370.0,101350.0,0.2463349]
[1737992958259,0.00029736,101370.0,101360.0,0.32172081]
[1737992958479,0.00029736,101370.0,101360.0,0.36963429]
[1737992958688,0.00029736,101370.0,101360.0,0.4003987]
[1737992959984,0.00029736,101370.0,101360.0,0.54567411]
[1737992960211,0.00029736,101370.0,101360.0,0.4263987]
[1737992960419,0.00029736,101370.0,101360.0,0.2554117]
[1737992960629,0.00029736,101370.0,101360.0,0.37263429]
[1737992960837,0.16578746,101370.0,101360.0,0.0539]
[1737992961049,0.00029736,101370.0,101360.0,0.29623429]
[1737992961466,0.00029736,101370.0,101360.0,0.37323429]
[1737992961895,0.00029736,101370.0,101360.0,0.40395339]
[1737992962105,0.00029736,101370.0,101360.0,1.90395339]
[1737992962389,0.00029736,101370.0,101360.0,1.92695339]
[1737992963014,0.00129736,101370.0,101360.0,1.90223429]
[1737992963235,0.00029736,101370.0,101360.0,1.89623429]
[1737992963650,0.00029736,101370.0,101360.0,0.39923429]
[1737992964075,0.00029736,101370.0,101360.0,1.89923429]
[1737992964279,0.00029736,101370.0,101360.0,0.39923429]
[1737992965110,0.147972,101370.0,101360.0,0.22824729]
[1737992965317,0.27123173,101370.0,101360.0,0.005]
[1737992965548,0.42024741,101370.0,101360.0,0.005]
[1737992966375,0.01741546,101350.0,101340.0,0.24264285]
[1737992966638,0.01741546,101350.0,101340.0,0.33999014]
[1737992967269,0.28867619,101350.0,101340.0,0.00028985]
[1737992967515,0.28867619,101350.0,101340.0,0.09763714]
[1737992967516,0.16541646,101350.0,101340.0,0.09763714]
[1737992967943,0.29998532,101350.0,101340.0,0.09471521]
[1737992968155,0.42127641,101350.0,101340.0,0.09471521]
[1737992968369,0.5186237,101350.0,101340.0,0.09771521]
[1737992969652,0.5176237,101350.0,101340.0,0.09171521]
[1737992969866,0.5176237,101350.0,101340.0,0.08871521]
[1737992970132,0.5186237,101350.0,101340.0,0.08871521]
[1737992970388,0.5186237,101350.0,101340.0,0.00028985]
[1737992970389,0.51792128,101350.0,101340.0,0.00028985]
[1737992970586,0.52192128,101350.0,101340.0,0.00028985]
[1737992971031,0.51792128,101350.0,101340.0,0.00028985]
[1737992971227,0.52792128,101350.0,101340.0,0.00128985]
[1737992975261,0.54736551,101350.0,101340.0,0.00128985]
[1737992975891,0.45001822,101350.0,101340.0,0.00128985]
[1737992977099,0.43057399,101350.0,101340.0,0.00128985]
[1737992978621,0.23994541,101350.0,101340.0,0.00128985]
[1737992978847,0.15829858,101350.0,101340.0,0.00128985]
[1737992979053,0.01029758,101350.0,101340.0,0.09863714]
[1737992979267,0.17571404,101350.0,101340.0,0.09863714]
[1737992979469,0.01029758,101350.0,101340.0,0.24763984]
[1737992979675,0.01029758,101350.0,101340.0,0.24665314]
[1737992979878,0.00329758,101350.0,101340.0,0.24565314]
[1737992980288,0.02171304,101350.0,101340.0,0.24565314]
[1737992980464,0.01871304,101350.0,101340.0,0.24565314]
[1737992980672,0.00129758,101350.0,101340.0,0.24565314]
[1737992980878,0.00129758,101350.0,101340.0,0.32435314]
[1737992981059,0.00129758,101350.0,101340.0,0.39335314]
[1737992982044,0.00129758,101350.0,101340.0,0.67578835]
[1737992982275,0.00129758,101350.0,101340.0,0.70642976]
[1737992982494,0.00129758,101350.0,101340.0,0.71042976]
[1737992982719,0.00129758,101350.0,101340.0,2.21042976]
[1737992982920,0.00129758,101350.0,101340.0,2.07799455]
[1737992983137,0.00129758,101350.0,101340.0,2.04735314]
[1737992983682,0.00029758,101350.0,101340.0,2.1357785]
[1737992983888,0.00029758,101350.0,101340.0,2.1457785]
[1737992984107,0.00029758,101350.0,101340.0,0.80143047]
[1737992984501,0.00029758,101350.0,101340.0,2.30143047]
[1737992984781,0.00129758,101350.0,101340.0,2.30843047]
[1737992985130,0.00129758,101350.0,101340.0,2.02341072]
[1737992985343,0.00129758,101350.0,101340.0,0.4927785]
[1737992985765,0.00129758,101350.0,101340.0,0.6427785]
[1737992986335,0.00129758,101350.0,101340.0,0.4697785]